{"text_format":"3","workbook":"xlsx","n_sheets":2,"sheets":["חשבונית חיוב","הגדרת חברה"],"not_rendered":{"images":1,"defined_names":27},"read":"whole","date_system":"1900"}

{"sheet":"חשבונית חיוב","index":0,"n_rows":35,"n_cols":7,"rows_kept":35,"merged":[[1,3,2,4],[3,3,3,4],[4,3,4,4],[5,3,5,4],[23,1,23,3],[24,1,24,3],[25,1,25,3],[26,1,26,3]]}
[null,"חשבונית","0005"]
[null,{"$f":"TODAY()","v":"2022-04-08"},null,{"$f":"InvoiceTotal","v":79.65},null," ","הגדרת חברה"]
[null,"תאריך יעד לתשלום:",{"$f":"TODAY()+15","v":"2022-04-23"},null,null," "]
[null,"נויה שטיינברג",null,"ADVENTURE WORKS"]
[null,"Fabrikam, Inc.‎",null,"רחוב השזיפים 23456"]
[null,"רחוב התפוחים 123",null,"חיפה 09876"]
[null,"תל אביב 12345"]
[null,"כמות","פרטים","מחיר ליחידה","סכום שורה"]
[null,2,"מוטות",14.95,{"$f":"IFERROR(פרטי_חשבונית[[#This Row],[מחיר ליחידה]]*פרטי_חשבונית[[#This Row],[כמות]],\"\")","v":{"v":29.9,"d":"29.90"}}]
[null,5,"דיסקיות",9.95,{"$f":"IFERROR(פרטי_חשבונית[[#This Row],[מחיר ליחידה]]*פרטי_חשבונית[[#This Row],[כמות]],\"\")","v":49.75}]
[{"$nulls":4},{"$f":"IFERROR(פרטי_חשבונית[[#This Row],[מחיר ליחידה]]*פרטי_חשבונית[[#This Row],[כמות]],\"\")","v":0}]
[{"$nulls":4},{"$f":"IFERROR(פרטי_חשבונית[[#This Row],[מחיר ליחידה]]*פרטי_חשבונית[[#This Row],[כמות]],\"\")","v":0}]
[{"$nulls":4},{"$f":"IFERROR(פרטי_חשבונית[[#This Row],[מחיר ליחידה]]*פרטי_חשבונית[[#This Row],[כמות]],\"\")","v":0}]
[{"$nulls":4},{"$f":"IFERROR(פרטי_חשבונית[[#This Row],[מחיר ליחידה]]*פרטי_חשבונית[[#This Row],[כמות]],\"\")","v":0}]
[{"$nulls":4},{"$f":"IFERROR(פרטי_חשבונית[[#This Row],[מחיר ליחידה]]*פרטי_חשבונית[[#This Row],[כמות]],\"\")","v":0}]
[{"$nulls":4},{"$f":"IFERROR(פרטי_חשבונית[[#This Row],[מחיר ליחידה]]*פרטי_חשבונית[[#This Row],[כמות]],\"\")","v":0}]
[{"$nulls":4},{"$f":"IFERROR(פרטי_חשבונית[[#This Row],[מחיר ליחידה]]*פרטי_חשבונית[[#This Row],[כמות]],\"\")","v":0}]
[{"$nulls":4},{"$f":"IFERROR(פרטי_חשבונית[[#This Row],[מחיר ליחידה]]*פרטי_חשבונית[[#This Row],[כמות]],\"\")","v":0}]
[{"$nulls":4},{"$f":"IFERROR(פרטי_חשבונית[[#This Row],[מחיר ליחידה]]*פרטי_חשבונית[[#This Row],[כמות]],\"\")","v":0}]
[{"$nulls":4},{"$f":"IFERROR(פרטי_חשבונית[[#This Row],[מחיר ליחידה]]*פרטי_חשבונית[[#This Row],[כמות]],\"\")","v":0}]
[{"$nulls":4},{"$f":"IFERROR(פרטי_חשבונית[[#This Row],[מחיר ליחידה]]*פרטי_חשבונית[[#This Row],[כמות]],\"\")","v":0}]
[{"$nulls":4},{"$f":"IFERROR(פרטי_חשבונית[[#This Row],[מחיר ליחידה]]*פרטי_חשבונית[[#This Row],[כמות]],\"\")","v":0}]
[{"$nulls":4},{"$f":"IFERROR(פרטי_חשבונית[[#This Row],[מחיר ליחידה]]*פרטי_חשבונית[[#This Row],[כמות]],\"\")","v":0}]
[null,"הנחה"]
[null,"סכום נטו",null,null,{"$f":"SUM(פרטי_חשבונית[סכום שורה])-E24","v":{"v":79.65,"d":"₪ 79.65"}}]
[null,"מס"]
[null,{"$f":"REPT(CompanySetup_YourCurrencyAbbreviation,LEN(CompanySetup_YourCurrencyAbbreviation)>0)&\" סה\"\"כ\"","v":"ILS סה\"כ"},null,null,{"$f":"IFERROR(E25+E26, \"\")","v":{"v":79.65,"d":"₪ 79.65"}}]
[null,"פרטי תשלום",null,null,"מידע אחר"]
[null,"שם מוטב:",{"$f":" CompanySetup_BankBeneficiaryName","v":"Adventure Works"},null,{"$f":"IFERROR(CompanySetup_YourName,\"\")","v":"ירון מישה"}]
[null,"שם בנק:",{"$f":"CompanySetup_BankName","v":"Woodgrove Bank"},null,{"$f":"IFERROR(\"טלפון: \" & CompanySetup_YourPhone,\"\")","v":"טלפון: 09-1234567"}]
[null,"כתובת בנק:",{"$f":"CompanySetup_BankAddress","v":"רחוב האגסים 234 חיפה 09876"},null,{"$f":"IFERROR(\"פקס: \" & CompanySetup_YourFax,\"\")","v":"פקס: 09-1234568"}]
[null,"מספר חשבון:",{"$f":"CompanySetup_BankAccount","v":1234567},null,{"$f":"IFERROR(CompanySetup_YourURL,\"\")","v":"Adventure-Works.com"}]
[null,"מספר ניתוב (קוד SWIFT)",{"$f":"CompanySetup_BankRouting","v":9876543210},null,{"$f":"IFERROR(CompanySetup_YourEmail,\"\")","v":"Accounting@Adventure-Works.com"}]
[null,"אסמכתת תשלום:",{"$f":"InvoiceNumberDisplay","v":"0005"},null,{"$f":"IFERROR(IF(LEN(Client_PO),\"חוזה/הזמנת רכש: \" & Client_PO,\"\"),\"\")","v":""}]
[null,{"$f":"UPPER(\"יש לבצע את התשלום באמצעות העברה בנקאית או שיק לפקודת \" & CompanySetup_CheckPayee & \".\")","v":"יש לבצע את התשלום באמצעות העברה בנקאית או שיק לפקודת ADVENTURE WORKS."}]

{"sheet":"הגדרת חברה","index":1,"n_rows":20,"n_cols":5,"rows_kept":20}
[null,"הגדרת חברה"]
[null,"פרטי החברה המפיקה את החשבונית","ערך",null,"חשבונית חיוב"]
[null,"שם","ירון מישה"]
[null,"שם החברה","ADVENTURE WORKS"]
[null,"שורת כתובת 1","רחוב השזיפים 23456"]
[null,"שורת כתובת 2","חיפה 09876"]
[null,"שורת כתובת 3"]
[null,"שורת כתובת 4"]
[null,"שורת כתובת 5"]
[null,"טלפון","09-1234567"]
[null,"פקס","09-1234568"]
[null,"אתר אינטרנט","Adventure-Works.com"]
[null,"דואר אלקטרוני","Accounting@Adventure-Works.com"]
[null,"קיצור מטבע","ILS"]
[null,"שם מוטב עבור העברה בנקאית","Adventure Works"]
[null,"שם בנק","Woodgrove Bank"]
[null,"כתובת בנק","רחוב האגסים 234 חיפה 09876"]
[null,"מספר חשבון",1234567]
[null,"מספר ניתוב (קוד SWIFT)",9876543210]
[null,"יש לרשום את כל השיקים לפקודת","Adventure Works"]